[Event "Titled Tuesday Blitz May 30 Late 2023"]
[White "Schut, Han"]
[Black "Wang, Alexander J"]
[WhiteFideId "1005561"]
[BlackFideId "30955270"]
[WhiteElo "2024"]
[BlackElo "2253"]
[Result "1-0"]
[Round "11"]
[TimeControl "180+2"]
[Date "2023.05.31"]
[WhiteClock "0:00:06"]
[BlackClock "0:00:01"]

1. e4 {[%clk 0:03:00]}  c5 {[%clk 0:02:59]} 2. Nf3 {[%clk 0:03:01]}  e6 {[%clk 0:02:59]} 3. c4 {[%clk 0:03:01]}  Nc6 {[%clk 0:02:57]} 4. Nc3 {[%clk 0:03:01]}  Be7 {[%clk 0:02:52]} 5. d4 {[%clk 0:02:59]}  cxd4 {[%clk 0:02:51]} 6. Nxd4 {[%clk 0:03:00]}  Nf6 {[%clk 0:02:51]} 7. Be2 {[%clk 0:02:58]}  O-O {[%clk 0:02:51]} 8. Be3 {[%clk 0:02:57]}  a6 {[%clk 0:02:41]} 9. O-O {[%clk 0:02:55]}  Rb8 {[%clk 0:02:38]} 10. Rc1 {[%clk 0:02:53]}  d6 {[%clk 0:02:18]} 11. f3 {[%clk 0:02:51]}  Bd7 {[%clk 0:02:18]} 12. Qd2 {[%clk 0:02:51]}  Nxd4 {[%clk 0:02:15]} 13. Bxd4 {[%clk 0:02:51]}  Bc6 {[%clk 0:02:10]} 14. Rfd1 {[%clk 0:02:49]}  b5 {[%clk 0:02:05]} 15. cxb5 {[%clk 0:02:44]}  axb5 {[%clk 0:02:06]} 16. Bxf6 {[%clk 0:02:32]}  gxf6 {[%clk 0:01:55]} 17. Nd5 {[%clk 0:02:26]}  Bxd5 {[%clk 0:01:48]} 18. exd5 {[%clk 0:02:25]}  e5 {[%clk 0:01:40]} 19. Bd3 {[%clk 0:02:21]}  f5 {[%clk 0:01:32]} 20. Bxf5 {[%clk 0:02:18]}  Bg5 {[%clk 0:01:32]} 21. Qd3 {[%clk 0:02:09]}  Bxc1 {[%clk 0:01:30]} 22. Bxh7+ {[%clk 0:02:08]}  Kg7 {[%clk 0:01:29]} 23. Rxc1 {[%clk 0:02:09]}  Qg5 {[%clk 0:01:22]} 24. Rc6 {[%clk 0:02:06]}  Rh8 {[%clk 0:01:13]} 25. Be4 {[%clk 0:02:01]}  Qh4 {[%clk 0:01:13]} 26. h3 {[%clk 0:01:56]}  Qf6 {[%clk 0:01:03]} 27. Qc2 {[%clk 0:01:46]}  Rhd8 {[%clk 0:00:54]} 28. b3 {[%clk 0:01:45]}  Qf4 {[%clk 0:00:48]} 29. Kf2 {[%clk 0:01:34]}  Qh4+ {[%clk 0:00:47]} 30. Kf1 {[%clk 0:01:29]}  Qe7 {[%clk 0:00:46]} 31. Qf2 {[%clk 0:01:21]}  Qg5 {[%clk 0:00:43]} 32. Qa7 {[%clk 0:01:19]}  Rbc8 {[%clk 0:00:38]} 33. Qb7 {[%clk 0:01:10]}  Rb8 {[%clk 0:00:33]} 34. Qc7 {[%clk 0:00:56]}  Qf6 {[%clk 0:00:33]} 35. Qa5 {[%clk 0:00:49]}  Qg5 {[%clk 0:00:25]} 36. Qb4 {[%clk 0:00:47]}  Qf6 {[%clk 0:00:25]} 37. g4 {[%clk 0:00:42]}  Qe7 {[%clk 0:00:22]} 38. Kg2 {[%clk 0:00:41]}  Rd7 {[%clk 0:00:19]} 39. Kg3 {[%clk 0:00:34]}  Rdd8 {[%clk 0:00:19]} 40. h4 {[%clk 0:00:33]}  Rh8 {[%clk 0:00:19]} 41. h5 {[%clk 0:00:32]}  Rhd8 {[%clk 0:00:19]} 42. Qd2 {[%clk 0:00:29]}  Qf6 {[%clk 0:00:19]} 43. g5 {[%clk 0:00:29]}  Qe7 {[%clk 0:00:16]} 44. h6+ {[%clk 0:00:29]}  Kh8 {[%clk 0:00:16]} 45. Kg4 {[%clk 0:00:22]}  Rg8 {[%clk 0:00:15]} 46. f4 {[%clk 0:00:21]}  exf4 {[%clk 0:00:11]} 47. Qd4+ {[%clk 0:00:21]}  Qe5 {[%clk 0:00:11]} 48. Qxe5+ {[%clk 0:00:18]}  dxe5 {[%clk 0:00:12]} 49. Rf6 {[%clk 0:00:14]}  Rgf8 {[%clk 0:00:11]} 50. d6 {[%clk 0:00:13]}  Rbd8 {[%clk 0:00:11]} 51. Bf5 {[%clk 0:00:13]}  Kg8 {[%clk 0:00:10]} 52. d7 {[%clk 0:00:13]}  Rb8 {[%clk 0:00:08]} 53. Rd6 {[%clk 0:00:09]}  Rbd8 {[%clk 0:00:08]} 54. Kf3 {[%clk 0:00:09]}  Kh8 {[%clk 0:00:08]} 55. Ke4 {[%clk 0:00:09]}  Rb8 {[%clk 0:00:08]} 56. Kxe5 {[%clk 0:00:08]}  f3 {[%clk 0:00:08]} 57. Rd3 {[%clk 0:00:07]}  f2 {[%clk 0:00:09]} 58. Rf3 {[%clk 0:00:08]}  f6+ {[%clk 0:00:08]} 59. gxf6 {[%clk 0:00:07]}  Rb6 {[%clk 0:00:08]} 60. Be6 {[%clk 0:00:07]}  Rbb8 {[%clk 0:00:06]} 61. Rxf2 {[%clk 0:00:06]}  Rbd8 {[%clk 0:00:06]} 62. Rg2 {[%clk 0:00:06]}  Kh7 {[%clk 0:00:06]} 63. Rg7+ {[%clk 0:00:06]}  Kxh6 {[%clk 0:00:06]} 64. Re7 {[%clk 0:00:07]}  Kg6 {[%clk 0:00:06]} 65. Rg7+ {[%clk 0:00:08]}  Kh6 {[%clk 0:00:06]} 66. Kd6 {[%clk 0:00:08]}  Rxf6 {[%clk 0:00:05]} 67. Ke7 {[%clk 0:00:08]}  Rff8 {[%clk 0:00:05]} 68. Rf7 {[%clk 0:00:08]}  Rh8 {[%clk 0:00:05]} 69. Rf6+ {[%clk 0:00:08]}  Kg7 {[%clk 0:00:05]} 70. Bf7 {[%clk 0:00:07]}  Rhf8 {[%clk 0:00:04]} 71. Rg6+ {[%clk 0:00:06]}  Kh7 {[%clk 0:00:04]} 72. Rg4 {[%clk 0:00:06]}  Rxf7+ {[%clk 0:00:02]} 73. Kxd8 {[%clk 0:00:05]}  Rf8+ {[%clk 0:00:02]} 74. Kc7 {[%clk 0:00:05]}  Rf7 {[%clk 0:00:01]} 75. Kc8 {[%clk 0:00:06]} 1-0


[Site "https://www.chess.com"]

[Event "Titled Tuesday Blitz May 30 Late 2023"]
[White "Kornyukov, Alexey"]
[Black "NtcPou"]
[WhiteFideId "4150457"]
[WhiteElo "2352"]
[BlackElo "2055"]
[Result "1-0"]
[Round "11"]
[TimeControl "180+2"]
[Date "2023.05.31"]
[WhiteClock "0:00:53"]
[BlackClock "0:01:13"]

1. d4 {[%clk 0:02:57]}  d5 {[%clk 0:02:59]} 2. c4 {[%clk 0:02:56]}  c6 {[%clk 0:02:59]} 3. Nf3 {[%clk 0:02:55]}  Nf6 {[%clk 0:02:58]} 4. e3 {[%clk 0:02:56]}  a6 {[%clk 0:02:58]} 5. Nc3 {[%clk 0:02:46]}  Bf5 {[%clk 0:02:57]} 6. Qb3 {[%clk 0:02:41]}  Ra7 {[%clk 0:02:55]} 7. Nh4 {[%clk 0:02:20]}  Bg4 {[%clk 0:02:38]} 8. h3 {[%clk 0:02:14]}  Bh5 {[%clk 0:02:37]} 9. g4 {[%clk 0:02:02]}  Bg6 {[%clk 0:02:27]} 10. Nxg6 {[%clk 0:02:02]}  hxg6 {[%clk 0:02:27]} 11. g5 {[%clk 0:02:03]}  Ne4 {[%clk 0:02:24]} 12. Nxe4 {[%clk 0:02:00]}  dxe4 {[%clk 0:02:23]} 13. c5 {[%clk 0:01:58]}  e6 {[%clk 0:02:18]} 14. h4 {[%clk 0:01:50]}  Be7 {[%clk 0:02:15]} 15. Bg2 {[%clk 0:01:49]}  Qd5 {[%clk 0:02:12]} 16. Qc2 {[%clk 0:01:49]}  Qd8 {[%clk 0:02:02]} 17. Bxe4 {[%clk 0:01:46]}  Bxg5 {[%clk 0:01:59]} 18. hxg5 {[%clk 0:01:44]}  Rxh1+ {[%clk 0:01:58]} 19. Bxh1 {[%clk 0:01:44]}  Qxg5 {[%clk 0:01:58]} 20. Qe2 {[%clk 0:01:38]}  Nd7 {[%clk 0:01:53]} 21. Bd2 {[%clk 0:01:35]}  e5 {[%clk 0:01:52]} 22. O-O-O {[%clk 0:01:32]}  b6 {[%clk 0:01:38]} 23. Bxc6 {[%clk 0:01:28]}  bxc5 {[%clk 0:01:37]} 24. dxc5 {[%clk 0:01:20]}  Kf8 {[%clk 0:01:31]} 25. Ba5 {[%clk 0:01:07]}  Qe7 {[%clk 0:01:22]} 26. Qc4 {[%clk 0:00:56]}  Qxc5 {[%clk 0:01:13]} 27. Bb4 {[%clk 0:00:53]} 1-0


[Site "https://www.chess.com"]